[Event "FIDE World Junior U20-ch Girls 2025"]
[Site "Petrovac"]
[Date "2025.02.26"]
[Round "2.27"]
[White "Nurgaliyeva, Zarina"]
[Black "Mickunaite, Agne"]
[Result "1-0"]
[Annotator "ChessBase"]
[ECO "B30"]
[WhiteElo "2265"]
[BlackElo "1918"]
[PlyCount "75"]
[EventDate "2025.02.23"]
[EventType "swiss"]
[EventCountry "MNE"]
[SourceTitle "playchess.com"]
[Source "ChessBase"]
[SourceQuality "1"]
[TimeControl "40/5400+30:1800+30"]

1. e4 {[%emt 0:00:03]} c5 {[%emt 0:00:06]} 2. Nf3 {[%emt 0:00:04]} Nc6 {[%emt 0:00:08]} 3. Bb5 {[%emt 0:00:05]} d6 {[%emt 0:00:11]} 4. c3 {[%emt 0:00:21]} a6 {[%emt 0:16:13]} 5. Bxc6+ {[%emt 0:00:43]} bxc6 {[%emt 0:00:06]} 6. d4 {[%emt 0:00:15]} cxd4 {[%emt 0:01:16]} 7. cxd4 {[%emt 0:00:08]} d5 {[%emt 0:03:25]} 8. e5 {[%emt 0:04:36]} Bg4 {[%emt 0:05:43]} 9. O-O {[%emt 0:07:00]} e6 {[%emt 0:04:57]} 10. Nc3 {[%emt 0:10:10]} Ne7 {[%emt 0:08:58]} 11. h3 {[%emt 0:07:10]} Bxf3 {[%emt 0:05:33]} 12. Qxf3 {[%emt 0:00:09]} Nf5 {[%emt 0:00:06]} 13. Rd1 {[%emt 0:00:27]} Qb6 {[%emt 0:07:16]} 14. Qd3 {[%emt 0:01:29]} Be7 {[%emt 0:08:08]} 15. b3 {[%emt 0:15:23]} O-O {[%emt 0:01:53]} 16. Bf4 {[%emt 0:00:14]} f6 {[%emt 0:05:15]} 17. Rac1 {[%emt 0:01:06]} g5 {[%emt 0:04:13]} 18. Bh2 {[%emt 0:01:13]} a5 {[%emt 0:08:45]} 19. Na4 {[%emt 0:03:24]} Qb5 {[%emt 0:00:43]} 20. Qc3 {[%emt 0:06:10]} Rac8 {[%emt 0:02:47]} 21. Nc5 {[%emt 0:11:47]} Bxc5 {[%emt 0:02:37]} 22. Qxc5 {[%emt 0:00:29]} fxe5 {[%emt 0:01:48]} 23. Bxe5 {[%emt 0:00:26]} a4 {[%emt 0:01:00]} 24. b4 {[%emt 0:01:03]} Qe2 {[%emt 0:00:56]} 25. Qc2 {[%emt 0:00:42]} Qb5 {[%emt 0:01:37]} 26. Qd2 {[%emt 0:01:14]} h6 {[%emt 0:00:20]} 27. Rc5 {[%emt 0:00:59]} Qb7 {[%emt 0:00:50]} 28. Rdc1 {[%emt 0:01:14]} Nh4 {[%emt 0:02:07]} 29. b5 {[%emt 0:00:52]} Ng6 {[%emt 0:01:24]} 30. bxc6 {[%emt 0:00:43]} Qf7 {[%emt 0:00:12]} 31. Bd6 {[%emt 0:00:37]} Rfd8 {[%emt 0:00:23]} 32. Bg3 {[%emt 0:00:12]} Qf5 {[%emt 0:00:59]} 33. Ra5 {[%emt 0:01:12]} h5 {[%emt 0:00:32]} 34. Rxa4 {[%emt 0:02:35]} h4 {[%emt 0:00:11]} 35. Be5 {[%emt 0:00:38]} Rf8 {[%emt 0:02:03]} 36. Qc2 {[%emt 0:03:24]} Qf7 {[%emt 0:02:53]} 37. Ra7 {[%emt 0:00:48]} Ne7 {[%emt 0:02:39]} 38. Rxe7 {[%emt 0:00:09]} 1-0

[Event "FIDE World Junior U20-ch Girls 2025"]
[Site "Petrovac"]
[Date "2025.02.26"]
[Round "2.28"]
[White "Ostensson, Julia"]
[Black "Lu, Miaoyi"]
[Result "0-1"]
[Annotator "ChessBase"]
[ECO "B40"]
[WhiteElo "1979"]
[BlackElo "2432"]
[PlyCount "70"]
[EventDate "2025.02.23"]
[EventType "swiss"]
[EventCountry "MNE"]
[SourceTitle "playchess.com"]
[Source "ChessBase"]
[SourceQuality "1"]
[TimeControl "40/5400+30:1800+30"]

1. e4 {[%emt 0:00:03]} c5 {[%emt 0:00:05]} 2. Nf3 {[%emt 0:00:06]} e6 {[%emt 0:00:03]} 3. c3 {[%emt 0:00:16]} d5 {[%emt 0:02:26]} 4. exd5 {[%emt 0:00:48]} Qxd5 {[%emt 0:00:02]} 5. d4 {[%emt 0:00:50]} Nc6 {[%emt 0:00:24]} 6. Na3 {[%emt 0:04:03]} Nf6 {[%emt 0:06:22]} 7. Be2 {[%emt 0:03:04]} cxd4 {[%emt 0:07:36]} 8. Nb5 {[%emt 0:01:54]} Qd7 {[%emt 0:01:31]} 9. Nbxd4 {[%emt 0:01:29]} a6 {[%emt 0:01:59]} 10. O-O {[%emt 0:00:46]} Bd6 {[%emt 0:00:07]} 11. Qa4 {[%emt 0:12:23]} Nxd4 {[%emt 0:13:03]} 12. Qxd4 {[%emt 0:00:09]} Qc7 {[%emt 0:06:09]} 13. Rd1 {[%emt 0:14:17]} Bc5 {[%emt 0:00:02]} 14. Qf4 {[%emt 0:00:08]} Qb6 {[%emt 0:15:49]} 15. Ne5 {[%emt 0:07:05]} O-O {[%emt 0:00:28]} 16. Nc4 {[%emt 0:01:32]} Qc6 {[%emt 0:00:15]} 17. Ne5 {[%emt 0:09:56]} Qc7 {[%emt 0:00:53]} 18. Nc4 {[%emt 0:02:25]} Qe7 {[%emt 0:10:10]} 19. Be3 {[%emt 0:18:14]} b5 {[%emt 0:12:02]} 20. Bf3 {[%emt 0:06:48]} Bxe3 {[%emt 0:01:31]} 21. Nxe3 {[%emt 0:06:20]} e5 {[%emt 0:04:20]} 22. Nf5 {[%emt 0:03:26]} Bxf5 {[%emt 0:00:02]} 23. Qxf5 {[%emt 0:00:06]} e4 {[%emt 0:00:02]} 24. Re1 {[%emt 0:05:48]} Rfe8 {[%emt 0:00:03]} 25. Rad1 {[%emt 0:00:30]} Rac8 {[%emt 0:02:03]} 26. Rd4 {[%emt 0:00:28]} Rc5 {[%emt 0:00:09]} 27. Qf4 {[%emt 0:00:23]} Re5 {[%emt 0:01:04]} 28. Bd1 {[%emt 0:00:39]} Nd5 {[%emt 0:01:36]} 29. Qd2 {[%emt 0:00:04]} e3 {[%emt 0:00:56]} 30. fxe3 {[%emt 0:00:22]} Nxe3 {[%emt 0:00:13]} 31. Rd7 {[%emt 0:01:02]} Qh4 {[%emt 0:06:47]} 32. g3 {[%emt 0:00:23]} Qf6 {[%emt 0:02:16]} 33. Bb3 {[%emt 0:00:41]} Nc4 {[%emt 0:00:44]} 34. Rxe5 {[%emt 0:00:11]} Nxe5 {[%emt 0:00:10]} 35. Bxf7+ {[%emt 0:01:19]} Nxf7 {[%emt 0:00:44]} 0-1

[Event "FIDE World Junior U20-ch Girls 2025"]
[Site "Petrovac"]
[Date "2025.02.26"]
[Round "2.29"]
[White "Hernandez Diaz, Paula Sofia"]
[Black "Peglau, Charis"]
[Result "1/2-1/2"]
[Annotator "ChessBase"]
[ECO "A80"]
[WhiteElo "1972"]
[BlackElo "2203"]
[PlyCount "133"]
[EventDate "2025.02.23"]
[EventType "swiss"]
[EventCountry "MNE"]
[SourceTitle "playchess.com"]
[Source "ChessBase"]
[SourceQuality "1"]
[TimeControl "40/5400+30:1800+30"]

1. d4 {[%emt 0:00:02]} f5 {[%emt 0:00:06]} 2. Nc3 {[%emt 0:01:38]} Nf6 {[%emt 0:00:48]} 3. Bg5 {[%emt 0:00:21]} g6 {[%emt 0:05:30]} 4. h4 {[%emt 0:06:30]} Bg7 {[%emt 0:02:23]} 5. h5 {[%emt 0:02:25]} Nxh5 {[%emt 0:05:39]} 6. Rxh5 {[%emt 0:01:08]} gxh5 {[%emt 0:00:06]} 7. e4 {[%emt 0:04:01]} O-O {[%emt 0:03:22]} 8. Nd5 {[%emt 0:02:57]} Nc6 {[%emt 0:03:44]} 9. Bb5 {[%emt 0:02:51]} Rf7 {[%emt 0:06:12]} 10. Bc4 {[%emt 0:05:30]} b5 {[%emt 0:12:58]} 11. Bb3 {[%emt 0:01:05]} Qf8 {[%emt 0:20:38]} 12. Nxc7 {[%emt 0:04:55]} e6 {[%emt 0:02:18]} 13. Nxa8 {[%emt 0:00:52]} Bxd4 {[%emt 0:02:23]} 14. c3 {[%emt 0:03:52]} Be5 {[%emt 0:06:43]} 15. exf5 {[%emt 0:02:26]} Rxf5 {[%emt 0:00:28]} 16. Nf3 {[%emt 0:00:22]} Qg7 {[%emt 0:02:35]} 17. Bc2 {[%emt 0:11:05]} Rf7 {[%emt 0:00:28]} 18. Qd2 {[%emt 0:11:07]} Bb7 {[%emt 0:09:57]} 19. O-O-O {[%emt 0:03:21]} Bxa8 {[%emt 0:01:46]} 20. Bh6 {[%emt 0:03:25]} Qf6 {[%emt 0:03:50]} 21. Be3 {[%emt 0:07:42]} Rg7 {[%emt 0:03:34]} 22. Bg5 {[%emt 0:05:51]} Rxg5 {[%emt 0:03:11]} 23. Qxg5+ {[%emt 0:01:07]} Qxg5+ {[%emt 0:00:01]} 24. Nxg5 {[%emt 0:00:01]} Bf4+ {[%emt 0:00:06]} 25. Kb1 {[%emt 0:00:11]} Bxg5 {[%emt 0:00:02]} 26. Rxd7 {[%emt 0:00:08]} Ne5 {[%emt 0:01:49]} 27. Rxh7 {[%emt 0:00:50]} h4 {[%emt 0:02:14]} 28. f4 {[%emt 0:02:23]} Bxf4 {[%emt 0:00:30]} 29. Rxh4 {[%emt 0:00:28]} Bg3 {[%emt 0:00:33]} 30. Rh5 {[%emt 0:01:29]} Kf7 {[%emt 0:00:34]} 31. Rh7+ {[%emt 0:01:34]} Kf6 {[%emt 0:00:01]} 32. Rh8 {[%emt 0:00:53]} Bd5 {[%emt 0:00:40]} 33. Rg8 {[%emt 0:00:59]} Bf4 {[%emt 0:00:28]} 34. g3 {[%emt 0:01:09]} Be3 {[%emt 0:00:26]} 35. b3 {[%emt 0:01:50]} Nf3 {[%emt 0:00:53]} 36. Kb2 {[%emt 0:00:56]} Ke5 {[%emt 0:00:17]} 37. Bd3 {[%emt 0:02:15]} a6 {[%emt 0:00:32]} 38. c4 {[%emt 0:04:03]} bxc4 {[%emt 0:00:35]} 39. bxc4 {[%emt 0:00:08]} Bc6 {[%emt 0:00:37]} 40. Rc8 {[%emt 0:02:07]} Nd4 {[%emt 0:00:53]} 41. Kc3 {[%emt 0:31:54]} Kd6 {[%emt 0:04:35]} 42. c5+ {[%emt 0:00:00]} Kxc5 {[%emt 0:00:06]} 43. Bxa6 {[%emt 0:00:00]} Kb6 {[%emt 0:03:43]} 44. Bd3 {[%emt 0:00:00]} e5 {[%emt 0:00:20]} 45. Rb8+ {[%emt 0:00:00]} Kc5 {[%emt 0:00:49]} 46. Rc8 {[%emt 0:00:00]} Kd6 {[%emt 0:00:57]} 47. g4 {[%emt 0:00:00]} Bd7 {[%emt 0:01:18]} 48. Rg8 {[%emt 0:00:00]} Be6 {[%emt 0:01:42]} 49. Rg6 {[%emt 0:00:00]} Ke7 {[%emt 0:00:35]} 50. a4 {[%emt 0:00:00]} Kf7 {[%emt 0:05:33]} 51. g5 {[%emt 0:00:00]} Nc6 {[%emt 0:01:47]} 52. Rf6+ {[%emt 0:00:00]} Ke7 {[%emt 0:00:05]} 53. Rg6 {[%emt 0:00:00]} Bd4+ {[%emt 0:05:46]} 54. Kd2 {[%emt 0:00:00]} Na5 {[%emt 0:02:28]} 55. Rg7+ {[%emt 0:01:08]} Kd6 {[%emt 0:00:47]} 56. Rh7 {[%emt 0:01:37]} Nb3+ {[%emt 0:00:37]} 57. Kc2 {[%emt 0:01:42]} Nc5 {[%emt 0:00:19]} 58. g6 {[%emt 0:03:07]} Nxd3 {[%emt 0:02:55]} 59. Kxd3 {[%emt 0:00:12]} Bf5+ {[%emt 0:01:43]} 60. Kc4 {[%emt 0:00:07]} Ke6 {[%emt 0:00:13]} 61. Rh4 {[%emt 0:01:51]} Be3 {[%emt 0:03:16]} 62. g7 {[%emt 0:00:45]} Kf7 {[%emt 0:00:01]} 63. Rh5 {[%emt 0:00:35]} Be6+ {[%emt 0:00:04]} 64. Kd3 {[%emt 0:00:24]} Bf4 {[%emt 0:00:43]} 65. Ke4 {[%emt 0:00:33]} Kxg7 {[%emt 0:01:30]} 66. Rxe5 {[%emt 0:00:35]} Bxe5 {[%emt 0:00:07]} 67. Kxe5 {[%emt 0:00:05]} 1/2-1/2

[Event "FIDE World Junior U20-ch Girls 2025"]
[Site "Petrovac"]
[Date "2025.02.26"]
[Round "2.30"]
[White "Khuslen, Erdenebayar"]
[Black "Petricenco, Ana"]
[Result "1-0"]
[Annotator "ChessBase"]
[ECO "D10"]
[WhiteElo "2201"]
[BlackElo "1973"]
[PlyCount "113"]
[EventDate "2025.02.23"]
[EventType "swiss"]
[EventCountry "MNE"]
[SourceTitle "playchess.com"]
[Source "ChessBase"]
[SourceQuality "1"]
[TimeControl "40/5400+30:1800+30"]

1. d4 {[%emt 0:00:05]} d5 {[%emt 0:00:07]} 2. c4 {[%emt 0:00:28]} c6 {[%emt 0:00:07]} 3. Nc3 {[%emt 0:00:33]} Nf6 {[%emt 0:00:28]} 4. e3 {[%emt 0:02:00]} Bf5 {[%emt 0:02:22]} 5. Nf3 {[%emt 0:06:29]} e6 {[%emt 0:00:16]} 6. Bd3 {[%emt 0:02:38]} Bxd3 {[%emt 0:06:12]} 7. Qxd3 {[%emt 0:00:09]} Nbd7 {[%emt 0:00:28]} 8. O-O {[%emt 0:02:24]} Bd6 {[%emt 0:01:40]} 9. e4 {[%emt 0:03:50]} dxe4 {[%emt 0:00:45]} 10. Nxe4 {[%emt 0:00:08]} Nxe4 {[%emt 0:00:05]} 11. Qxe4 {[%emt 0:00:05]} Nf6 {[%emt 0:00:14]} 12. Qe2 {[%emt 0:03:09]} O-O {[%emt 0:01:46]} 13. Bg5 {[%emt 0:02:32]} Be7 {[%emt 0:04:36]} 14. Rfd1 {[%emt 0:02:41]} Re8 {[%emt 0:03:37]} 15. Rab1 {[%emt 0:07:59]} Qc7 {[%emt 0:07:59]} 16. b4 {[%emt 0:06:31]} Rad8 {[%emt 0:05:40]} 17. h3 {[%emt 0:01:57]} Nh5 {[%emt 0:06:01]} 18. Be3 {[%emt 0:08:50]} Nf4 {[%emt 0:12:04]} 19. Qc2 {[%emt 0:05:52]} Ng6 {[%emt 0:02:56]} 20. Qa4 {[%emt 0:02:06]} Bd6 {[%emt 0:10:44]} 21. Rdc1 {[%emt 0:06:59]} Bf4 {[%emt 0:05:29]} 22. Bxf4 {[%emt 0:03:42]} Nxf4 {[%emt 0:00:14]} 23. Rc2 {[%emt 0:00:59]} Qe7 {[%emt 0:05:14]} 24. Re1 {[%emt 0:25:00]} Qf6 {[%emt 0:02:10]} 25. Kh2 {[%emt 0:00:48]} Qg6 {[%emt 0:07:20]} 26. g3 {[%emt 0:00:28]} Qh5 {[%emt 0:03:13]} 27. Ng1 {[%emt 0:00:40]} Nd3 {[%emt 0:03:52]} 28. Ree2 {[%emt 0:01:07]} Rxd4 {[%emt 0:01:19]} 29. Qxa7 {[%emt 0:00:18]} Red8 {[%emt 0:00:41]} 30. Rcd2 {[%emt 0:01:44]} e5 {[%emt 0:01:51]} 31. Qxb7 {[%emt 0:00:35]} h6 {[%emt 0:02:02]} 32. Qb6 {[%emt 0:01:06]} Qf5 {[%emt 0:01:01]} 33. a4 {[%emt 0:01:02]} e4 {[%emt 0:01:40]} 34. a5 {[%emt 0:00:42]} Qf6 {[%emt 0:00:34]} 35. b5 {[%emt 0:01:49]} Rxc4 {[%emt 0:01:16]} 36. a6 {[%emt 0:00:10]} cxb5 {[%emt 0:00:19]} 37. Qxb5 {[%emt 0:01:23]} Rc5 {[%emt 0:01:13]} 38. Qb7 {[%emt 0:00:00]} Ra5 {[%emt 0:01:01]} 39. a7 {[%emt 0:00:03]} Qa1 {[%emt 0:00:53]} 40. Qxe4 {[%emt 0:00:48]} Qb1 {[%emt 0:00:29]} 41. Rxd3 {[%emt 0:00:29]} Qxd3 {[%emt 0:04:20]} 42. Qxd3 {[%emt 0:00:08]} Rxd3 {[%emt 0:00:04]} 43. Re8+ {[%emt 0:00:04]} Kh7 {[%emt 0:00:04]} 44. a8=Q {[%emt 0:00:04]} Rxa8 {[%emt 0:00:04]} 45. Rxa8 {[%emt 0:00:06]} g6 {[%emt 0:00:49]} 46. Kg2 {[%emt 0:00:08]} Kg7 {[%emt 0:00:04]} 47. Ra7 {[%emt 0:00:13]} Rd6 {[%emt 0:00:13]} 48. Nf3 {[%emt 0:00:24]} Kf6 {[%emt 0:00:09]} 49. Rb7 {[%emt 0:00:34]} Re6 {[%emt 0:00:27]} 50. g4 {[%emt 0:00:48]} Kg7 {[%emt 0:00:49]} 51. Kg3 {[%emt 0:00:07]} Kf6 {[%emt 0:00:08]} 52. h4 {[%emt 0:00:09]} Rd6 {[%emt 0:00:50]} 53. Kf4 {[%emt 0:00:29]} Ke6 {[%emt 0:00:36]} 54. g5 {[%emt 0:00:36]} h5 {[%emt 0:00:51]} 55. Ke4 {[%emt 0:00:05]} f5+ {[%emt 0:01:11]} 56. gxf6 {[%emt 0:01:40]} Kxf6 {[%emt 0:01:07]} 57. Ng5 {[%emt 0:00:05]} 1-0

[Event "FIDE World Junior U20-ch Girls 2025"]
[Site "Petrovac"]
[Date "2025.02.26"]
[Round "2.31"]
[White "Canino, Ruelle"]
[Black "Liuviann, Cecilia Natalie"]
[Result "0-1"]
[Annotator "ChessBase"]
[ECO "A16"]
[WhiteElo "2179"]
[BlackElo "1964"]
[PlyCount "92"]
[EventDate "2025.02.23"]
[EventType "swiss"]
[EventCountry "MNE"]
[SourceTitle "playchess.com"]
[Source "ChessBase"]
[SourceQuality "1"]
[TimeControl "40/5400+30:1800+30"]

1. c4 {[%emt 0:00:14]} Nf6 {[%emt 0:00:28]} 2. Nc3 {[%emt 0:01:04]} d5 {[%emt 0:00:13]} 3. cxd5 {[%emt 0:00:09]} Nxd5 {[%emt 0:00:06]} 4. Nf3 {[%emt 0:00:29]} g6 {[%emt 0:00:42]} 5. h4 {[%emt 0:00:49]} h5 {[%emt 0:01:57]} 6. d4 {[%emt 0:02:14]} Bg7 {[%emt 0:00:26]} 7. e4 {[%emt 0:02:31]} Nxc3 {[%emt 0:05:25]} 8. bxc3 {[%emt 0:00:07]} O-O {[%emt 0:00:06]} 9. Ba3 {[%emt 0:03:49]} b6 {[%emt 0:03:27]} 10. Bc4 {[%emt 0:01:21]} Bb7 {[%emt 0:02:50]} 11. Ng5 {[%emt 0:01:51]} c5 {[%emt 0:05:38]} 12. Rh3 {[%emt 0:19:57]} b5 {[%emt 0:17:43]} 13. Bxf7+ {[%emt 0:10:23]} Rxf7 {[%emt 0:00:23]} 14. Nxf7 {[%emt 0:00:17]} Kxf7 {[%emt 0:00:07]} 15. Qb3+ {[%emt 0:00:11]} c4 {[%emt 0:01:09]} 16. Qxb5 {[%emt 0:00:09]} Bxe4 {[%emt 0:00:42]} 17. Qxc4+ {[%emt 0:02:51]} Qd5 {[%emt 0:05:48]} 18. Qe2 {[%emt 0:07:33]} Nc6 {[%emt 0:04:04]} 19. Re3 {[%emt 0:02:29]} Bf5 {[%emt 0:07:49]} 20. Bxe7 {[%emt 0:07:23]} Nxe7 {[%emt 0:05:40]} 21. Rxe7+ {[%emt 0:00:09]} Kf8 {[%emt 0:00:04]} 22. Re3 {[%emt 0:06:00]} Qxg2 {[%emt 0:04:13]} 23. Qb2 {[%emt 0:02:09]} Rc8 {[%emt 0:07:00]} 24. a4 {[%emt 0:15:38]} Qg1+ {[%emt 0:03:32]} 25. Ke2 {[%emt 0:00:52]} Qg4+ {[%emt 0:00:11]} 26. Kf1 {[%emt 0:00:44]} Kg8 {[%emt 0:07:47]} 27. Rae1 {[%emt 0:02:45]} Rf8 {[%emt 0:00:38]} 28. Qb7 {[%emt 0:04:55]} Qxh4 {[%emt 0:01:34]} 29. Qg2 {[%emt 0:01:28]} Bh6 {[%emt 0:02:59]} 30. Qd5+ {[%emt 0:02:42]} Kh8 {[%emt 0:01:30]} 31. Qe5+ {[%emt 0:00:13]} Bg7 {[%emt 0:00:37]} 32. Qg3 {[%emt 0:00:10]} Qh1+ {[%emt 0:00:25]} 33. Ke2 {[%emt 0:00:15]} Qc6 {[%emt 0:00:20]} 34. Kf1 {[%emt 0:01:15]} Bf6 {[%emt 0:07:29]} 35. Kg1 {[%emt 0:00:32]} h4 {[%emt 0:02:01]} 36. Qf4 {[%emt 0:00:09]} Kg7 {[%emt 0:00:38]} 37. Kh2 {[%emt 0:01:34]} Qd7 {[%emt 0:01:35]} 38. a5 {[%emt 0:01:32]} g5 {[%emt 0:00:38]} 39. Qf3 {[%emt 0:00:04]} g4 {[%emt 0:01:14]} 40. Qf4 {[%emt 0:00:35]} Kg6 {[%emt 0:00:12]} 41. R3e2 {[%emt 0:30:46]} Qc6 {[%emt 0:07:51]} 42. Qd2 {[%emt 0:00:00]} Bg5 {[%emt 0:01:22]} 43. Qa2 {[%emt 0:00:00]} Qf3 {[%emt 0:14:20]} 44. Qa4 {[%emt 0:00:00]} h3 {[%emt 0:01:32]} 45. Re6+ {[%emt 0:00:00]} Bxe6 {[%emt 0:00:14]} 46. Rxe6+ {[%emt 0:00:00]} Kh5 {[%emt 0:00:11]} 0-1

[Event "FIDE World Junior U20-ch Girls 2025"]
[Site "Petrovac"]
[Date "2025.02.26"]
[Round "2.32"]
[White "Bochnickova, Simona"]
[Black "Sovetbekova, Nurai"]
[Result "1/2-1/2"]
[Annotator "ChessBase"]
[ECO "B90"]
[WhiteElo "2171"]
[BlackElo "1940"]
[PlyCount "95"]
[EventDate "2025.02.23"]
[EventType "swiss"]
[EventCountry "MNE"]
[SourceTitle "playchess.com"]
[Source "ChessBase"]
[SourceQuality "1"]
[TimeControl "40/5400+30:1800+30"]

1. e4 {[%emt 0:00:03]} c5 {[%emt 0:00:04]} 2. Nf3 {[%emt 0:00:04]} d6 {[%emt 0:00:05]} 3. d4 {[%emt 0:00:04]} cxd4 {[%emt 0:00:03]} 4. Nxd4 {[%emt 0:00:05]} Nf6 {[%emt 0:00:37]} 5. Nc3 {[%emt 0:00:07]} a6 {[%emt 0:00:00]} 6. h3 {[%emt 0:00:07]} g6 {[%emt 0:00:00]} 7. Be3 {[%emt 0:02:37]} Bg7 {[%emt 0:00:00]} 8. a4 {[%emt 0:11:37]} Nbd7 {[%emt 0:09:46]} 9. g4 {[%emt 0:05:21]} Nc5 {[%emt 0:06:54]} 10. Bg2 {[%emt 0:00:25]} h5 {[%emt 0:02:54]} 11. g5 {[%emt 0:01:59]} Nh7 {[%emt 0:00:49]} 12. Qd2 {[%emt 0:06:48]} Rb8 {[%emt 0:06:38]} 13. O-O {[%emt 0:05:36]} O-O {[%emt 0:06:41]} 14. f4 {[%emt 0:15:44]} e5 {[%emt 0:14:43]} 15. Nf3 {[%emt 0:04:20]} exf4 {[%emt 0:15:38]} 16. Bxf4 {[%emt 0:06:59]} Bxc3 {[%emt 0:00:09]} 17. Qxc3 {[%emt 0:00:03]} Nxe4 {[%emt 0:06:36]} 18. Qb4 {[%emt 0:01:32]} Re8 {[%emt 0:04:50]} 19. Rae1 {[%emt 0:06:27]} Bf5 {[%emt 0:03:28]} 20. Nh4 {[%emt 0:05:54]} Nhxg5 {[%emt 0:02:13]} 21. Nxf5 {[%emt 0:00:06]} gxf5 {[%emt 0:00:02]} 22. Bh2 {[%emt 0:00:56]} b5 {[%emt 0:04:39]} 23. a5 {[%emt 0:06:00]} Rc8 {[%emt 0:04:02]} 24. Rxf5 {[%emt 0:05:11]} Rc4 {[%emt 0:02:40]} 25. Qa3 {[%emt 0:00:01]} Qd7 {[%emt 0:02:16]} 26. Bxe4 {[%emt 0:05:43]} Nxe4 {[%emt 0:00:23]} 27. Rxh5 {[%emt 0:00:08]} Qa7+ {[%emt 0:02:37]} 28. Qe3 {[%emt 0:05:43]} Qxe3+ {[%emt 0:00:47]} 29. Rxe3 {[%emt 0:00:01]} Rxc2 {[%emt 0:00:12]} 30. b4 {[%emt 0:02:34]} Rb2 {[%emt 0:01:59]} 31. Rh4 {[%emt 0:02:28]} d5 {[%emt 0:00:38]} 32. Rg4+ {[%emt 0:01:03]} Kf8 {[%emt 0:00:44]} 33. Bf4 {[%emt 0:00:41]} Rc8 {[%emt 0:01:34]} 34. Re1 {[%emt 0:00:30]} Rcc2 {[%emt 0:01:34]} 35. h4 {[%emt 0:00:23]} f5 {[%emt 0:00:40]} 36. Bh6+ {[%emt 0:00:34]} Kf7 {[%emt 0:00:21]} 37. Rg7+ {[%emt 0:00:07]} Kf6 {[%emt 0:00:42]} 38. Rg8 {[%emt 0:00:02]} Rxb4 {[%emt 0:00:23]} 39. h5 {[%emt 0:01:09]} Rb3 {[%emt 0:00:48]} 40. Rg6+ {[%emt 0:00:38]} Kf7 {[%emt 0:00:41]} 41. Rg7+ {[%emt 0:30:24]} Ke6 {[%emt 0:11:00]} 42. Rg6+ {[%emt 0:00:00]} Kd7 {[%emt 0:03:51]} 43. Rg7+ {[%emt 0:00:00]} Ke6 {[%emt 0:11:07]} 44. Rg6+ {[%emt 0:00:00]} Kf7 {[%emt 0:01:20]} 45. Rg7+ {[%emt 0:00:00]} Kf6 {[%emt 0:00:05]} 46. Rg6+ {[%emt 0:00:00]} Kf7 {[%emt 0:01:09]} 47. Rg7+ {[%emt 0:00:00]} Kf6 {[%emt 0:00:04]} 48. Rg6+ {[%emt 0:00:00]} 1/2-1/2

[Event "FIDE World Junior U20-ch Girls 2025"]
[Site "Petrovac"]
[Date "2025.02.26"]
[Round "2.33"]
[White "Zito, Enrica"]
[Black "Shokirjonova, Barchinoy"]
[Result "0-1"]
[Annotator "ChessBase"]
[ECO "C02"]
[WhiteElo "1941"]
[BlackElo "2061"]
[PlyCount "110"]
[EventDate "2025.02.23"]
[EventType "swiss"]
[EventCountry "MNE"]
[SourceTitle "playchess.com"]
[Source "ChessBase"]
[SourceQuality "1"]
[TimeControl "40/5400+30:1800+30"]

1. e4 {[%emt 0:00:03]} e6 {[%emt 0:00:19]} 2. d4 {[%emt 0:00:03]} d5 {[%emt 0:00:07]} 3. e5 {[%emt 0:00:03]} c5 {[%emt 0:00:27]} 4. c3 {[%emt 0:00:03]} Nc6 {[%emt 0:00:22]} 5. Nf3 {[%emt 0:00:05]} Bd7 {[%emt 0:00:08]} 6. Be2 {[%emt 0:00:05]} f6 {[%emt 0:07:51]} 7. O-O {[%emt 0:00:15]} Qb6 {[%emt 0:06:22]} 8. dxc5 {[%emt 0:01:05]} Bxc5 {[%emt 0:01:39]} 9. b4 {[%emt 0:00:06]} Be7 {[%emt 0:01:50]} 10. Be3 {[%emt 0:00:07]} Qc7 {[%emt 0:02:36]} 11. c4 {[%emt 0:04:16]} dxc4 {[%emt 0:11:44]} 12. Bxc4 {[%emt 0:01:01]} Nxe5 {[%emt 0:18:30]} 13. Nxe5 {[%emt 0:00:11]} Qxe5 {[%emt 0:00:48]} 14. Nd2 {[%emt 0:06:41]} f5 {[%emt 0:16:28]} 15. Nf3 {[%emt 0:00:29]} Qd6 {[%emt 0:09:30]} 16. Qe2 {[%emt 0:04:01]} Nf6 {[%emt 0:07:13]} 17. Bc5 {[%emt 0:01:59]} Qc6 {[%emt 0:01:17]} 18. Bxe7 {[%emt 0:03:32]} Kxe7 {[%emt 0:00:27]} 19. Ng5 {[%emt 0:00:55]} Rhe8 {[%emt 0:03:19]} 20. b5 {[%emt 0:09:20]} Qb6 {[%emt 0:01:09]} 21. a4 {[%emt 0:02:16]} Kf8 {[%emt 0:02:56]} 22. a5 {[%emt 0:00:22]} Qc7 {[%emt 0:01:27]} 23. Qa2 {[%emt 0:05:23]} Qf4 {[%emt 0:02:09]} 24. Nh3 {[%emt 0:02:48]} Qg4 {[%emt 0:01:05]} 25. Rfe1 {[%emt 0:01:16]} Re7 {[%emt 0:00:15]} 26. Rad1 {[%emt 0:00:37]} Rae8 {[%emt 0:00:16]} 27. f3 {[%emt 0:00:11]} Qh4 {[%emt 0:00:12]} 28. Re5 {[%emt 0:06:20]} Nd5 {[%emt 0:00:35]} 29. Qb3 {[%emt 0:02:34]} Nf4 {[%emt 0:01:04]} 30. Nf2 {[%emt 0:01:40]} Ng6 {[%emt 0:00:52]} 31. Re2 {[%emt 0:00:31]} Qf6 {[%emt 0:00:28]} 32. g3 {[%emt 0:02:52]} Bc8 {[%emt 0:00:40]} 33. Qe3 {[%emt 0:01:02]} f4 {[%emt 0:00:39]} 34. Qb3 {[%emt 0:03:44]} fxg3 {[%emt 0:00:24]} 35. hxg3 {[%emt 0:00:05]} Kg8 {[%emt 0:00:48]} 36. Ne4 {[%emt 0:00:57]} Qe5 {[%emt 0:00:37]} 37. Kg2 {[%emt 0:00:07]} Kh8 {[%emt 0:00:41]} 38. Nd6 {[%emt 0:02:32]} Qg5 {[%emt 0:00:00]} 39. Re4 {[%emt 0:01:30]} Rf8 {[%emt 0:00:29]} 40. Rg4 {[%emt 0:01:39]} Qf6 {[%emt 0:01:31]} 41. Ne4 {[%emt 0:34:28]} Qe5 {[%emt 0:06:36]} 42. Rg5 {[%emt 0:00:00]} Qb8 {[%emt 0:01:20]} 43. Nd6 {[%emt 0:00:00]} Bd7 {[%emt 0:04:05]} 44. Qb4 {[%emt 0:00:00]} Be8 {[%emt 0:02:27]} 45. Bd3 {[%emt 0:00:00]} Kg8 {[%emt 0:07:35]} 46. Be4 {[%emt 0:17:06]} b6 {[%emt 0:04:22]} 47. a6 {[%emt 0:07:32]} Bf7 {[%emt 0:01:25]} 48. Bc6 {[%emt 0:04:24]} Rd8 {[%emt 0:02:37]} 49. Rd2 {[%emt 0:00:48]} Qc7 {[%emt 0:00:30]} 50. Be4 {[%emt 0:03:22]} Red7 {[%emt 0:00:49]} 51. Nc4 {[%emt 0:00:46]} Rxd2+ {[%emt 0:00:20]} 52. Nxd2 {[%emt 0:00:01]} Qc1 {[%emt 0:00:09]} 53. Nc4 {[%emt 0:02:46]} Qxg5 {[%emt 0:00:20]} 54. Nxb6 {[%emt 0:00:06]} Rd2+ {[%emt 0:00:52]} 55. Kf1 {[%emt 0:00:14]} Qe3 {[%emt 0:00:34]} 0-1